bitfinex-derivatives/quotes_ETHF0:USTF0_20251012
["timestamp","ask_amount","ask_price","bid_price","bid_amount"]
[1760229691149,0.00199925,3736.3,3736.0,0.823]
[1760229691339,0.00199925,3736.3,3736.2,0.3417]
[1760229691837,0.48116,3737.2,3736.2,0.3417]
[1760229692041,9.834,3738.0,3736.2,0.3417]
[1760229692245,1.20268,3737.9,3736.6,0.3417]
[1760229692446,4.64455452,3737.9,3736.6,0.3417]
[1760229692643,0.48116,3737.2,3736.6,0.3417]
[1760229692952,0.48118,3737.1,3736.6,0.3417]
[1760229693445,0.00204985,3737.2,3736.5,0.61554]
[1760229693446,0.48119,3737.0,3736.5,0.61554]
[1760229693650,0.48320985,3737.2,3736.6,0.48123]
[1760229693950,0.00204985,3737.2,3736.8,0.4812]
[1760229694148,0.00204985,3737.2,3736.1,1.91715904]
[1760229694443,1.20297,3737.0,3735.6,0.3417]
[1760229694644,12.03022,3736.9,3735.0,5.40648737]
[1760229694845,0.48137,3735.6,3735.0,0.1343]
[1760229695046,0.48134,3735.8,3735.1,0.48142]
[1760229695250,0.48136,3735.7,3735.1,0.48142]
[1760229695444,0.48133,3735.9,3735.2,0.48141]
[1760229695645,0.48131,3736.1,3735.4,0.81998]
[1760229695942,3.43547561,3736.4,3735.0,0.1343]
[1760229696160,3.43547561,3736.0,3735.0,0.1343]
[1760229696441,0.48138,3735.5,3735.0,0.4729]
[1760229697047,12.03049,3736.8,3735.0,0.1343]
[1760229697249,12.03049,3736.8,3734.5,2.05381802]
[1760229697250,3.45374176,3735.4,3734.5,0.00235898]
[1760229697551,1.20339,3735.7,3734.5,0.00235898]
[1760229697552,0.48149,3734.7,3734.5,0.00235898]
[1760229700548,0.48144,3735.1,3734.5,0.14055898]
[1760229700751,0.48145,3735.0,3734.5,0.14055898]
[1760229701152,0.48147,3734.9,3734.5,0.00235898]
[1760229701357,0.48149,3734.7,3734.5,0.00235898]
[1760229701848,0.48149,3734.7,3733.5,0.1382]
[1760229701849,5.0,3734.6,3733.5,0.61983]
[1760229702057,3.4488225,3734.6,3733.0,0.1382]
[1760229702252,0.48159,3733.9,3733.0,0.4768]
[1760229702554,0.48165,3733.5,3732.5,0.4768]
[1760229702746,0.48165,3733.5,3732.7,0.48173]
[1760229702943,0.00211729,3733.5,3732.8,0.3386]
[1760229703147,0.00211729,3733.5,3733.4,0.3386]
[1760229704849,0.00211729,3733.5,3733.1,0.48168]
[1760229705054,0.48167,3733.3,3732.7,0.0025468]
[1760229705652,0.48167,3733.3,3732.7,0.3548468]
[1760229706157,0.48375729,3733.5,3732.7,0.3548468]
[1760229706748,0.48375729,3733.5,3732.8,0.48172]
[1760229707152,0.48165,3733.4,3732.7,0.3548468]
[1760229707455,0.48165,3733.4,3732.7,0.8365768]
[1760229707955,0.00211729,3733.5,3732.9,0.4817]
[1760229708155,0.00211729,3733.5,3733.0,0.1378]
[1760229708357,0.00211729,3733.5,3733.4,0.3523]
[1760229708851,0.00211729,3733.5,3733.4,5.3523]
[1760229709453,1.20347,3735.5,3733.6,0.3523]
[1760229709652,1.20336,3735.8,3734.4,0.3523]
[1760229709848,1.20336,3735.8,3734.0,0.1378]
[1760229709849,3.55958168,3735.4,3734.0,0.1378]
[1760229710060,0.48154,3734.3,3733.6,0.48162]
[1760229710252,0.48148,3734.8,3734.0,0.48156]
[1760229710558,0.48149,3734.7,3734.0,0.48156]
[1760229710758,0.4815,3734.6,3733.9,0.3523]
[1760229710953,0.0031082,3734.8,3733.5,0.1378]
[1760229711163,0.48162,3733.7,3732.9,0.48171]
[1760229711360,0.48162,3733.7,3733.0,0.48169]
[1760229711559,0.48162,3733.7,3733.0,0.61949]
[1760229711753,1.20385,3734.3,3733.0,0.1378]
[1760229711951,1.20388,3734.2,3732.8,0.3523]
[1760229712157,0.48165,3733.4,3732.8,0.3523]
[1760229712759,0.48167,3733.2,3732.7,0.0025468]
[1760229713154,0.48165,3733.4,3732.7,0.0025468]
[1760229713560,0.48165,3733.4,3732.7,0.4842768]
[1760229714258,3.52496914,3734.0,3732.7,0.4842768]
[1760229714259,3.52496914,3734.0,3732.8,0.83402]
[1760229714655,0.48161,3733.7,3732.8,0.83402]
[1760229714956,1.20391,3734.1,3732.8,0.3523]
[1760229715158,0.48167,3733.3,3732.7,0.0025468]
[1760229715456,3.4699932,3734.0,3732.8,0.3523]
[1760229715656,0.48159,3733.9,3733.1,0.48167]
[1760229715962,0.48159,3733.9,3733.2,0.48166]
[1760229716952,1.20366,3734.9,3733.2,0.48166]
[1760229716953,0.48156,3734.1,3733.2,0.48166]
[1760229717259,3.4769004,3734.7,3733.6,0.48161]
[1760229717459,3.4769004,3734.7,3732.0,0.4901]
[1760229717460,13.24373,3733.9,3732.0,0.4901]
[1760229717659,13.24373,3733.9,3731.6,0.83417]
[1760229717660,0.48179,3732.4,3731.6,0.83417]
[1760229717863,0.48179,3732.4,3731.6,0.3523]
[1760229718059,3.50551913,3732.3,3731.1,0.3523]
[1760229718256,3.50551913,3732.3,3730.0,1.34301]
[1760229718257,3.50551913,3732.3,3730.7,0.3523]
[1760229718558,0.4819,3731.5,3730.7,0.35505085]
[1760229718759,0.48432128,3731.5,3730.7,0.35505085]
[1760229719165,0.48191,3731.4,3730.7,0.35505085]
[1760229719664,0.48198,3730.9,3730.7,0.00275085]
[1760229719862,0.00242128,3731.5,3729.0,0.1378]
[1760229719863,0.2733,3730.3,3729.0,0.1378]
[1760229720353,0.48209,3730.0,3729.0,0.62]
[1760229720665,0.48209,3730.0,3728.2,1.91715904]
[1760229720666,0.2733,3729.9,3729.3,0.48217]
[1760229720852,0.2733,3729.9,3729.4,0.48215]
[1760229721054,0.2733,3730.4,3729.6,0.48214]
[1760229721363,0.75534,3730.4,3729.6,0.48214]
[1760229721563,0.48206,3730.2,3729.4,0.48216]
[1760229721764,0.75534,3730.4,3729.3,0.00189202]
[1760229721961,0.0678,3731.0,3729.6,0.3523]
[1760229722164,0.48201,3730.7,3729.8,0.4821]
[1760229722352,0.2733,3730.6,3730.0,0.48208]
[1760229723458,0.0678,3732.0,3729.5,0.1378]
[1760229723459,0.2733,3731.2,3730.2,0.3523]
[1760229723664,0.2733,3731.2,3730.6,0.48201]
[1760229723865,3.4356937,3731.4,3731.1,0.3523]
[1760229724161,0.2733,3731.4,3730.1,0.3523]
[1760229724356,0.2733,3731.1,3730.1,0.3523]
[1760229724557,0.00242128,3731.5,3731.2,0.3523]
[1760229724862,0.00242128,3731.5,3731.2,0.3439]
[1760229725058,0.00242128,3731.5,3731.3,0.48192]
[1760229725261,0.00242128,3731.5,3731.4,5.3439]
[1760229725760,0.00242128,3731.5,3731.3,0.48192]
[1760229725761,0.2736,3732.8,3731.6,0.3439]
[1760229725959,0.4818,3732.3,3731.4,0.4819]
[1760229726160,0.2736,3732.2,3731.4,0.4819]
[1760229726361,0.48182,3732.1,3731.4,0.4819]
[1760229726561,0.00331524,3732.1,3731.5,0.48188]
[1760229728461,0.00331524,3732.1,3731.1,0.3439]
[1760229728661,0.00331524,3732.1,3731.7,0.48186]
[1760229728958,0.00331524,3732.1,3732.0,0.82573]
[1760229729158,0.00331524,3732.1,3732.0,0.82781821]
[1760229729968,0.00331524,3732.1,3732.0,0.00208821]
[1760229731755,0.00331524,3732.1,3732.0,5.34598821]
[1760229731958,0.2736,3733.2,3732.9,0.48171]
[1760229732158,0.2736,3733.6,3733.0,0.82559]
[1760229732364,0.2736,3734.4,3733.9,0.48158]
[1760229732763,0.2736,3734.4,3733.3,0.3439]
[1760229732964,0.27564969,3734.4,3733.3,0.3439]
[1760229733161,0.27564969,3734.4,3733.8,0.48159]
[1760229733565,0.27564969,3734.4,3733.9,0.48157]
[1760229733761,0.2736,3734.3,3733.9,0.48157]
[1760229733961,0.2736,3734.3,3733.3,0.3439]
[1760229734163,0.0689,3734.0,3732.1,0.3439]
[1760229734367,0.2736,3733.1,3732.1,0.3439]
[1760229734670,0.2736,3733.3,3732.7,0.48173]
[1760229735064,0.2736,3733.2,3732.8,0.48172]
[1760229735463,0.0689,3734.0,3732.5,0.3439]
[1760229735464,0.7552,3733.8,3733.0,0.48169]
[1760229735663,0.2736,3733.9,3732.8,0.48172]
[1760229735864,0.2736,3733.4,3732.8,0.48172]
[1760229736171,0.75525,3733.4,3732.8,0.48172]
[1760229736468,0.2736,3733.3,3732.9,0.4817]
[1760229736869,0.2736,3733.3,3732.3,0.3439]
[1760229736870,0.2736,3733.3,3733.0,0.48169]
[1760229737071,0.2736,3733.9,3732.7,0.3439]
[1760229737267,0.75519,3733.9,3733.3,0.48165]
[1760229737571,0.75519,3733.9,3733.2,0.48167]
[1760229737973,0.75519,3733.9,3733.0,0.3439]
[1760229737974,0.2736,3733.6,3733.0,0.48169]
[1760229738169,0.48163,3733.6,3733.0,0.48169]
[1760229738366,0.0689,3734.0,3732.5,0.4855]
[1760229738367,0.2736,3733.3,3732.5,0.4855]
[1760229738861,0.48162,3733.6,3732.9,0.4817]
[1760229739063,0.2736,3733.5,3732.9,0.4817]
[1760229739469,0.48166,3733.4,3732.7,0.48173]
[1760229739675,0.2736,3733.4,3732.0,0.48758821]
[1760229739867,0.48167,3733.3,3732.6,0.48174]
[1760229740272,0.48167,3733.3,3732.7,0.48173]
[1760229740965,0.2736,3733.4,3732.6,0.3439]
[1760229741175,0.75519,3733.9,3733.2,0.48167]
[1760229741368,0.4816,3733.8,3733.2,0.48167]
[1760229741573,0.48161,3733.7,3733.2,0.48167]
[1760229741766,0.2736,3733.6,3733.2,0.48167]
[1760229741966,0.0689,3734.0,3732.8,0.48172]
[1760229742169,0.48165,3733.4,3732.8,0.48172]
[1760229742776,0.2736,3733.3,3732.8,0.48172]
[1760229742972,0.48165,3733.4,3732.8,0.48172]
[1760229743370,0.0689,3734.0,3732.1,1.20453]
[1760229743371,0.2736,3733.0,3732.1,0.3439]
[1760229743571,0.4816,3733.8,3733.1,0.48168]
[1760229743771,0.2736,3733.9,3733.1,0.48168]
[1760229743971,0.2736,3733.9,3732.1,1.20454]
[1760229743972,1.204,3733.8,3732.4,0.3439]
[1760229744179,0.48169,3733.1,3732.5,0.48176]
[1760229744366,0.0681,3733.0,3732.1,0.48181]
[1760229744570,0.2736,3732.9,3732.0,0.00208821]
[1760229744770,0.2736,3732.9,3732.1,0.48181]
[1760229744965,0.48174,3732.7,3732.0,0.00208821]
[1760229745377,0.48174,3732.7,3732.1,0.48181]
[1760229745576,0.48172,3732.9,3732.2,0.4818]
[1760229745879,0.2736,3733.0,3732.1,0.3439]
[1760229746379,0.2736,3732.7,3732.0,0.00208821]
[1760229746680,0.48177,3732.5,3732.0,0.00208821]
[1760229746874,0.2736,3732.6,3732.0,0.48390821]
[1760229747180,0.75536,3732.6,3732.0,0.48390821]
[1760229747374,0.2736,3732.1,3732.0,0.00208821]
[1760229750172,1.27333,3732.5,3732.0,0.00208821]
[1760229750173,0.0689,3732.5,3732.0,0.00208821]
[1760229750373,0.2736,3732.4,3732.1,0.3439]
[1760229750570,0.2736,3732.8,3732.5,0.82566]
[1760229750774,0.2736,3732.8,3732.5,0.3439]
[1760229750976,0.2736,3732.8,3732.3,0.48178]
[1760229750977,0.2736,3732.9,3732.3,0.48178]
[1760229751483,0.75526,3733.3,3732.1,0.3439]
[1760229751681,0.75526,3733.3,3732.7,0.48173]
[1760229751884,0.0678,3733.5,3732.8,0.82562]
[1760229751885,0.54944,3733.5,3732.8,0.82562]
[1760229752080,0.48167,3733.3,3732.8,0.3439]
[1760229752271,0.0689,3734.0,3732.8,0.3439]
[1760229752272,0.2736,3733.4,3732.8,0.3439]
[1760229752582,0.0689,3734.0,3733.2,0.82556]
[1760229752776,0.2736,3733.9,3733.2,0.82556]
[1760229752972,0.4816,3733.8,3733.2,0.48166]
[1760229753177,0.2736,3733.6,3733.1,0.48168]
[1760229753482,0.2736,3733.5,3733.2,0.82557]
[1760229753983,5.0678,3733.5,3732.2,0.3439]
[1760229754279,0.2736,3732.9,3732.4,0.48177]
[1760229754583,0.2736,3733.1,3732.5,0.48176]
[1760229755079,0.48165,3733.4,3732.7,0.48173]
[1760229755283,0.2733,3733.3,3732.6,0.3436]
[1760229755484,0.2733,3733.6,3732.9,0.48171]
[1760229755979,0.48168,3733.2,3732.6,0.3436]
[1760229756189,0.0681,3733.0,3732.4,0.48177]
[1760229756385,0.2733,3733.0,3732.2,0.3436]
[1760229756683,0.2733,3733.4,3732.9,0.4817]
[1760229756878,0.2733,3733.5,3732.9,0.4817]
[1760229757078,0.48165,3733.4,3732.8,0.3436]
[1760229757281,0.2733,3733.5,3733.0,0.48169]
[1760229757475,0.0689,3734.0,3732.7,0.48173]
[1760229757681,0.6438765,3733.9,3732.7,0.48173]
[1760229757982,3.54425729,3733.9,3732.7,0.48173]
[1760229758581,0.48163,3733.6,3732.8,0.48172]
[1760229758782,0.2733,3733.5,3732.8,0.48172]
[1760229759190,1.47759,3732.9,3732.0,0.00208821]
[1760229759581,0.48179,3732.3,3732.0,0.00208821]
[1760229759881,0.75511,3732.2,3732.0,0.00208821]
[1760229760079,0.2733,3732.1,3732.0,0.00208821]
[1760229760283,0.48181,3732.2,3732.0,0.00208821]
[1760229760488,0.75511,3732.2,3732.0,0.00208821]
[1760229760786,0.2733,3732.1,3732.0,0.00208821]
[1760229761186,0.2716,3732.1,3732.0,0.00208821]
[1760229763690,0.2695,3731.9,3730.9,0.84836]
[1760229763886,0.0651,3732.0,3730.9,0.84836]
[1760229764085,0.2695,3731.3,3730.9,0.3664]
[1760229764480,0.27258273,3731.3,3730.9,0.00226531]
[1760229764891,0.27258273,3731.3,3731.0,0.3664]
[1760229765091,0.00308273,3731.3,3731.1,0.3664]
[1760229765278,0.00308273,3731.3,3731.0,0.1327]
[1760229765482,0.00308273,3731.3,3731.1,0.3664]
[1760229765682,0.00308273,3731.3,3730.9,0.00226531]
[1760229765988,0.2695,3731.0,3730.9,0.00226531]
[1760229767888,0.00308273,3731.3,3730.9,0.00226531]
[1760229768089,0.00308273,3731.3,3731.0,0.3664]
[1760229768291,0.00308273,3731.3,3731.2,0.3664]
[1760229768787,0.00308273,3731.3,3731.2,5.3664]
[1760229768988,1.20419,3733.2,3731.3,0.3664]
[1760229768989,0.3384,3732.5,3731.3,0.3664]
[1760229769190,0.2695,3732.2,3731.5,0.98099]
[1760229769485,0.2695,3731.9,3731.5,0.3664]
[1760229769690,0.48183,3732.0,3731.5,0.3664]
[1760229769895,0.2695,3731.9,3731.5,0.3664]
[1760229770191,0.2695,3731.8,3731.0,0.4991]
[1760229770391,0.2695,3731.8,3731.0,0.98105]
[1760229770595,0.2695,3731.8,3731.1,0.48193]
[1760229770891,0.48184,3731.9,3731.4,0.4819]
[1760229771093,0.06852386,3732.0,3731.0,0.4991]
[1760229771094,0.00342386,3732.0,3731.5,0.61459]
[1760229771397,0.2695,3731.9,3731.6,0.3664]
[1760229771893,0.2695,3731.9,3731.5,0.3664]
[1760229772094,0.75139,3731.6,3731.1,0.3664]
[1760229772294,0.48189,3731.6,3731.1,0.3664]
[1760229772593,0.2695,3731.5,3731.1,0.3664]
[1760229772895,0.2695,3731.5,3731.1,0.48194]
[1760229773100,0.2695,3731.5,3731.2,0.3664]
[1760229773484,0.48185,3731.9,3731.3,0.3664]
[1760229773690,0.27292386,3732.0,3731.3,0.3664]
[1760229774400,0.2695,3731.7,3731.3,0.3664]
[1760229774602,0.2695,3731.6,3731.0,0.1327]
[1760229775496,0.48189,3731.6,3731.1,0.48194]
[1760229775799,0.48187,3731.7,3731.2,0.48193]
[1760229775988,0.2695,3731.6,3731.2,0.84833]
[1760229776190,0.48187,3731.7,3731.2,0.3664]
[1760229776392,0.2695,3731.5,3731.2,0.3664]
[1760229776792,0.2695,3731.9,3730.9,0.00226531]
[1760229777790,0.48192,3731.4,3730.9,0.00226531]
[1760229778094,0.2695,3731.2,3730.9,0.00226531]
[1760229778396,0.2695,3731.2,3730.9,0.36866531]
[1760229778897,0.2695,3731.2,3730.9,0.00226531]
[1760229779096,0.2695,3731.2,3731.0,0.3664]
[1760229779894,0.2695,3731.2,3730.9,0.00226531]
[1760229780099,0.2695,3731.2,3731.0,0.3664]
[1760229780801,0.2695,3731.2,3730.9,0.48423531]
[1760229780998,0.2695,3731.2,3731.1,0.3664]
[1760229781294,0.48191,3731.4,3731.1,0.3664]
[1760229781496,0.2695,3731.0,3730.9,0.00226531]
[1760229781796,0.48202,3730.6,3730.0,0.99248]
[1760229782095,0.2695,3730.8,3729.6,0.3664]
[1760229782304,0.0681,3731.0,3729.6,0.3664]
[1760229782305,0.2695,3730.4,3729.6,0.3664]
[1760229782598,0.2695,3730.4,3730.1,0.48207]
[1760229782798,0.2695,3730.4,3730.1,0.84847]
[1760229783197,0.48203,3730.5,3730.1,0.84847]
[1760229783498,0.2695,3730.4,3730.1,0.84847]
[1760229783693,0.0675,3731.5,3730.3,0.3664]
[1760229783894,0.48197,3730.9,3730.4,0.48203]
[1760229784202,0.48199,3730.8,3730.4,0.3664]
[1760229784604,0.2695,3730.7,3730.4,0.84843]
[1760229784797,0.2717,3731.4,3730.1,0.3548]
[1760229784993,0.48194,3731.2,3730.1,0.3548]
[1760229785195,0.2717,3731.1,3730.6,0.8368]
[1760229785399,0.06852386,3732.0,3730.9,0.3548]
[1760229785698,0.48192,3731.3,3731.1,0.3548]
[1760229786002,0.2717,3731.2,3730.6,0.3548]
[1760229786211,0.06852386,3732.0,3730.6,0.3548]
[1760229786212,0.0697,3731.5,3730.6,0.3548]
[1760229786397,0.2717,3730.5,3729.7,0.3548]
[1760229786598,0.2717,3730.4,3729.7,0.83692]
[1760229786907,0.48207,3730.2,3729.7,0.3548]
[1760229787101,0.2717,3730.0,3729.5,0.1327]
[1760229787299,0.48205,3730.3,3729.7,0.83692]
[1760229787699,0.48205,3730.3,3729.8,0.48211]
[1760229787904,0.2717,3730.2,3729.9,0.3548]
[1760229788106,0.2717,3730.2,3729.5,0.1327]
[1760229788404,0.48203,3730.5,3729.7,0.3548]
[1760229789104,0.0681,3731.0,3729.5,0.1327]
[1760229789105,0.48199,3730.8,3730.5,0.1349]
[1760229789412,1.20472,3731.6,3730.5,0.4897]
[1760229789596,0.651969,3731.4,3730.5,0.4897]
[1760229789799,1.20472,3731.6,3730.5,0.4897]
[1760229789998,0.2717,3731.3,3730.5,0.4897]
[1760229790206,0.48197,3731.0,3730.5,0.4897]
[1760229790506,0.2717,3730.9,3730.5,0.4897]
[1760229790701,0.48198,3730.9,3730.5,0.4897]
[1760229790907,0.2717,3730.8,3730.5,0.4897]
[1760229791208,0.2717,3730.8,3730.6,0.3548]
[1760229792011,1.20463,3731.9,3730.6,0.3548]
[1760229792012,0.48187,3731.7,3730.6,0.3548]
[1760229792211,0.75355,3731.9,3730.6,0.3548]
[1760229792406,0.27512386,3732.0,3731.4,0.8367]
[1760229792608,0.27512386,3732.0,3731.4,0.3548]
[1760229793309,0.48185,3731.9,3731.5,0.3548]
[1760229793614,0.75355,3731.9,3731.3,0.3548]
[1760229793809,0.2717,3731.9,3731.3,0.83671]
[1760229794115,0.00342386,3732.0,3731.9,0.3548]
[1760229796607,0.27512386,3732.0,3731.5,0.1349]
[1760229796906,0.27512386,3732.0,3731.6,0.3548]
[1760229797113,0.00342386,3732.0,3731.6,0.3548]
[1760229797914,0.00342386,3732.0,3731.5,0.61679]
[1760229798113,0.00342386,3732.0,3731.7,0.3548]
[1760229798510,0.00342386,3732.0,3731.6,0.48187]
[1760229798707,0.00342386,3732.0,3731.9,0.3548]
[1760229802420,0.48169,3733.1,3732.5,0.61666]
[1760229802620,0.48167,3733.3,3732.6,0.83654]
[1760229802815,0.48167,3733.3,3732.5,0.1349]
[1760229802816,0.48168,3733.2,3732.7,0.3548]
[1760229803025,0.48179,3732.4,3732.0,0.4897]
[1760229803221,0.48178,3732.4,3732.0,0.3548]
[1760229803521,0.7535,3732.3,3732.0,0.00303035]
[1760229803820,0.7535,3732.3,3732.1,0.3548]
[1760229804618,0.2717,3732.1,3732.0,0.00303035]
[1760229804818,5.2717,3732.1,3732.0,0.00303035]
[1760229805013,0.2717,3732.1,3732.0,0.00303035]
[1760229805925,0.48476275,3732.4,3732.0,0.00303035]
[1760229806222,0.48476275,3732.4,3732.1,0.3548]
[1760229806223,0.00298275,3732.4,3732.1,0.3548]
[1760229806422,0.48476275,3732.4,3732.1,0.3548]
[1760229806628,0.2717,3732.2,3732.0,0.00303035]
[1760229807116,0.2717,3732.2,3732.0,0.35783035]
[1760229807724,0.2717,3732.1,3732.0,0.00303035]
[1760229808724,5.2717,3732.1,3732.0,0.00303035]
[1760229809928,0.2717,3732.1,3732.0,0.00303035]
[1760229812334,5.2717,3732.1,3732.0,0.00303035]
[1760229812530,0.2687,3731.1,3730.5,0.4897]
[1760229812730,0.482,3730.7,3730.5,0.4897]
[1760229813128,0.482,3730.7,3730.6,0.3548]
[1760229813631,0.75068,3730.9,3730.6,0.35696469]
[1760229814336,0.75069,3730.8,3730.6,0.35696469]
[1760229814729,0.75069,3730.8,3730.6,0.34736469]
[1760229814730,0.48199,3730.8,3730.6,0.34736469]
[1760229815037,0.48199,3730.8,3730.7,0.3452]
[1760229815332,0.48188,3731.6,3731.0,0.146]
[1760229815526,0.269,3732.0,3731.2,0.3452]
[1760229816235,0.4819,3731.5,3731.1,0.3452]
[1760229816435,0.4819,3731.5,3731.0,0.146]
[1760229817033,0.48194,3731.2,3731.1,0.3452]
[1760229817336,0.48194,3731.2,3729.8,1.42812374]
[1760229817337,1.20503,3730.6,3729.8,1.42812374]
[1760229817538,1.20503,3730.6,3729.8,0.3452]
[1760229817539,0.4821,3729.9,3729.8,0.3452]
[1760229817731,0.75112,3729.8,3729.5,0.3452]
[1760229817932,0.48213,3729.7,3729.1,0.3452]
[1760229818136,0.48214,3729.6,3729.1,0.3452]
[1760229818338,0.48484867,3729.6,3729.1,0.00271273]
[1760229818537,0.48484867,3729.6,3729.2,0.3452]
[1760229819332,0.269,3729.2,3729.1,0.00271273]
[1760229819532,0.00270867,3729.6,3728.1,0.3452]
[1760229819533,0.48222,3729.0,3728.1,0.3452]
[1760229819731,0.48225,3728.8,3728.1,0.3452]
[1760229820135,0.48222,3729.0,3728.1,0.82752]
[1760229820336,0.269,3729.1,3728.2,0.3452]
[1760229820337,0.48225,3728.8,3728.2,0.3452]
[1760229820537,0.48222,3729.0,3728.2,0.83055543]
[1760229820735,0.00270867,3729.6,3728.5,0.62827]
[1760229821044,0.269,3729.5,3728.6,0.3452]
[1760229821239,0.48223,3729.0,3728.5,0.62827]
[1760229821542,0.48224,3728.9,3728.5,0.146]
[1760229821935,0.48224,3728.9,3728.6,0.352]
[1760229822536,0.48224,3728.9,3728.6,5.0]
[1760229822741,0.48224,3728.9,3728.5,0.146]
[1760229823241,0.48224,3728.9,3728.6,0.352]
[1760229823544,0.48225,3728.8,3728.5,0.146]
[1760229823835,0.2691,3729.1,3728.2,0.35504543]
[1760229824040,0.4823,3728.4,3728.3,0.352]
[1760229826939,0.4822,3729.2,3728.4,0.352]
[1760229827139,0.48215,3729.5,3729.1,0.8342]
[1760229827335,0.48215,3729.5,3729.2,0.352]
[1760229827536,0.00270867,3729.6,3729.5,0.138]
[1760229827837,0.2691,3730.8,3730.0,0.49]
[1760229828037,0.48207,3730.2,3729.5,0.62014]
[1760229828344,0.48207,3730.2,3729.6,0.352]
[1760229828730,0.48208,3730.1,3729.6,0.83413]
[1760229828930,0.00345008,3730.2,3729.7,0.352]
[1760229828931,0.48211,3729.8,3729.7,0.352]
[1760229829434,0.48209,3730.0,3729.9,0.352]
[1760229830044,0.75119,3730.0,3729.7,0.352]
[1760229830237,0.48552008,3730.2,3729.8,0.352]
[1760229830438,0.27255008,3730.2,3729.9,0.352]
[1760229830736,0.48208,3730.1,3729.6,0.352]
[1760229830942,0.00345008,3730.2,3729.5,0.138]
[1760229831243,0.48208,3730.1,3729.8,0.352]
[1760229831443,0.48208,3730.1,3729.7,0.48212]
[1760229831739,0.00345008,3730.2,3729.7,0.48212]
[1760229831939,0.00345008,3730.2,3729.8,0.352]
[1760229832236,0.48552008,3730.2,3729.9,0.352]
[1760229832441,0.48552008,3730.2,3730.0,0.352]
[1760229833244,0.0697,3730.0,3729.1,0.352]
[1760229833442,0.0697,3730.0,3728.5,0.138]
[1760229833443,0.48216,3729.5,3728.6,0.352]
[1760229833741,0.75126,3729.5,3728.9,0.352]
[1760229833945,0.75126,3729.5,3729.0,0.138]
[1760229834145,0.75126,3729.5,3729.1,0.352]
[1760229834442,0.75126,3729.5,3729.0,0.138]
[1760229834635,0.2691,3729.4,3729.1,0.352]
[1760229834840,1.20527,3729.9,3728.7,0.352]
[1760229835036,0.0697,3730.0,3728.7,0.352]
[1760229835234,0.0697,3730.0,3728.9,0.352]
[1760229835235,0.2691,3729.9,3728.9,0.352]
[1760229835447,0.48213,3729.7,3729.1,0.352]
[1760229836148,1.20527,3729.9,3728.5,0.49]
[1760229836350,0.2691,3729.4,3728.5,0.49]
[1760229837352,0.48223,3728.9,3728.5,0.138]
[1760229837651,0.48223,3728.9,3728.6,0.352]
[1760229837853,0.75135,3728.8,3728.6,0.352]
[1760229838053,0.48228,3728.6,3728.2,0.00304543]
[1760229838255,0.48229,3728.5,3728.3,0.352]
[1760229839449,0.4823,3728.4,3728.2,0.00304543]
[1760229839646,0.2691,3728.3,3728.2,0.00304543]
[1760229840048,0.266,3727.4,3726.6,0.352]
[1760229840246,0.48247,3727.1,3726.3,0.48255]
[1760229840449,0.266,3727.3,3726.0,0.138]
[1760229840450,0.48244,3727.3,3726.6,0.352]
[1760229840945,0.48548592,3727.3,3726.6,0.35451769]
[1760229841151,0.00304592,3727.3,3726.7,0.352]
[1760229841358,0.48245,3727.2,3727.0,0.138]
[1760229841651,0.74851,3726.8,3726.6,0.00251769]
[1760229841956,0.48245,3727.2,3726.7,0.352]
[1760229842276,0.00304592,3727.3,3727.0,0.138]
[1760229842548,0.00304592,3727.3,3727.1,0.352]
[1760229843058,0.00304592,3727.3,3727.1,0.83445]
[1760229843248,0.266,3728.0,3727.5,0.138]
[1760229843249,0.48235,3728.0,3727.5,0.138]
[1760229843446,0.266,3728.4,3727.5,0.138]
[1760229843653,0.7483,3728.4,3727.8,0.352]
[1760229843857,0.48232,3728.3,3727.7,0.48238]
[1760229844153,0.00275727,3728.3,3727.9,0.352]
[1760229844359,0.48234,3728.1,3727.9,0.352]
[1760229845051,0.48234,3728.1,3726.6,1.20881769]
[1760229845052,0.48249,3727.0,3726.6,0.00251769]
[1760229845252,0.48249,3727.0,3725.1,1.20679]
[1760229845253,0.2638,3726.0,3724.9,0.48274]
[1760229845548,0.2638,3726.0,3724.8,0.3483]
[1760229845549,0.48264,3725.8,3725.0,0.48272]
[1760229845748,0.48264,3725.8,3725.0,0.61592]
[1760229845947,0.48264,3725.8,3725.1,0.3483]
[1760229846157,0.4826,3726.1,3725.1,0.35141021]
[1760229846351,0.48261,3726.0,3725.4,0.3483]
[1760229846556,0.48257,3726.3,3725.6,0.48265]
[1760229846755,0.48257,3726.3,3725.7,0.3483]
[1760229847152,0.48257,3726.3,3725.7,0.83093]
[1760229847556,0.2638,3726.9,3726.3,0.48256]
[1760229847858,0.4825,3726.9,3726.2,0.3483]
[1760229848161,0.48249,3726.9,3726.3,0.48256]
[1760229848456,0.2638,3727.4,3726.7,0.3483]
[1760229848957,0.48243,3727.4,3726.7,0.8308]
[1760229849159,0.4824,3727.6,3726.9,0.48248]
[1760229849360,0.48244,3727.3,3726.7,0.3483]
[1760229850154,0.48245,3727.2,3726.6,0.3483]
[1760229851563,0.2638,3727.5,3726.6,0.3483]
[1760229852266,0.48245,3727.3,3726.7,0.48251]
[1760229852558,0.48247,3727.1,3726.6,0.3483]
[1760229852764,0.48247,3727.1,3726.5,0.61573]
[1760229853263,0.2638,3727.5,3726.5,0.1332]
[1760229853264,0.48248,3727.0,3726.5,0.1332]
[1760229853454,0.48248,3727.0,3726.5,0.61573]
[1760229854456,0.2638,3727.5,3726.8,0.3483]
[1760229855864,0.48246,3727.2,3726.7,0.48251]